bitfinex/quotes_ETHUSD_20240618
["timestamp","ask_amount","ask_price","bid_price","bid_amount"]
[1718737685917,0.90460388,3398.4,3397.9,2.123]
[1718737685918,0.90460388,3398.8,3398.3,2.123]
[1718737686105,3.84656388,3399.1,3398.7,2.123]
[1718737686305,3.84656388,3399.1,3398.3,0.7623]
[1718737686306,2.94221,3398.8,3398.3,0.55]
[1718737686517,2.94221,3398.8,3398.3,2.123]
[1718737686817,2.94221,3398.8,3398.3,5.06562]
[1718737687020,2.94232,3398.7,3398.3,5.06562]
[1718737687189,2.94223,3398.8,3398.3,5.06562]
[1718737687389,2.94223,3398.8,3398.3,2.94262]
[1718737687889,0.90460388,3398.9,3398.6,2.94237]
[1718737688089,4.16432485,3399.1,3398.6,2.94237]
[1718737688090,0.90460388,3399.1,3398.8,2.94221]
[1718737688324,4.46114136,3399.4,3398.9,2.94211]
[1718737688325,0.90460388,3399.2,3398.9,2.94211]
[1718737688617,0.90460388,3399.3,3398.9,2.94211]
[1718737689196,0.90460388,3399.3,3399.0,2.94203]
[1718737689592,2.94188,3399.2,3398.7,2.94223]
[1718737690141,3.04321971,3399.1,3398.7,2.94223]
[1718737690353,0.90460388,3399.1,3398.7,2.94223]
[1718737690810,0.90460388,3399.1,3398.4,3.38]
[1718737691009,0.90460388,3399.2,3398.9,2.9421]
[1718737691314,0.90460388,3399.5,3399.1,2.94195]
[1718737691559,3.04308516,3399.4,3399.1,2.94195]
[1718737691854,0.90460388,3399.4,3399.1,2.94195]
[1718737692057,0.90460388,3399.4,3399.2,2.94182]
[1718737692568,0.90460388,3399.5,3399.2,2.94182]
[1718737692766,0.90460388,3399.5,3399.1,2.94193]
[1718737692767,2.94162,3399.5,3399.0,2.94203]
[1718737693059,2.94162,3399.5,3399.1,2.94193]
[1718737693268,3.84614388,3399.6,3399.1,2.94193]
[1718737693448,0.90460388,3399.6,3399.1,2.94194]
[1718737693754,3.84614388,3399.6,3399.0,2.94203]
[1718737693940,0.90460388,3399.6,3399.1,2.94194]
[1718737694311,3.84612388,3399.6,3399.2,2.94185]
[1718737694554,0.90460388,3399.6,3398.5,2.3125]
[1718737694857,0.90460388,3399.6,3398.7,2.94229]
[1718737694858,2.94185,3399.3,3398.7,2.94229]
[1718737695039,2.94196,3399.1,3398.4,3.38]
[1718737695211,2.94195,3399.2,3398.4,6.32255]
[1718737695409,2.94217,3398.9,3398.5,2.94246]
[1718737695646,2.94217,3398.9,3398.4,5.77254]
[1718737696716,2.94225,3398.8,3398.4,5.77254]
[1718737696912,2.94214,3398.9,3398.4,5.77254]
[1718737697145,3.84665388,3399.0,3398.4,2.83]
[1718737697146,0.90460388,3399.0,3398.4,2.83]
[1718737697318,0.90460388,3399.1,3398.5,2.94247]
[1718737697516,0.90460388,3399.3,3399.0,2.94197]
[1718737698058,3.84631388,3399.4,3398.9,2.9421]
[1718737698565,3.84631388,3399.4,3399.0,2.94203]
[1718737699122,0.90460388,3399.4,3399.1,2.94187]
[1718737699437,0.90460388,3399.5,3399.2,2.94182]
[1718737699650,0.90460388,3399.6,3399.3,2.94171]
[1718737699820,0.90460388,3399.6,3399.1,2.94194]
[1718737699821,3.84613388,3399.6,3399.1,2.94194]
[1718737700022,0.90460388,3399.6,3399.1,2.94194]
[1718737700271,0.90460388,3399.6,3399.2,2.94184]
[1718737700621,0.90460388,3399.6,3399.3,2.94178]
[1718737700821,0.90460388,3399.7,3399.3,2.94178]
[1718737701330,4.16379485,3399.8,3398.9,5.77208]
[1718737701331,0.90460388,3399.6,3398.9,2.83]
[1718737701527,0.90460388,3399.5,3399.1,2.94192]
[1718737701728,2.94161,3399.5,3399.0,3.49201]
[1718737701928,0.90460388,3399.5,3399.3,2.94178]
[1718737702134,1.52395678,3399.7,3399.3,2.94178]
[1718737702423,1.52395678,3399.7,3399.1,2.94193]
[1718737702424,2.94162,3399.5,3399.0,0.55]
[1718737702850,2.94184,3399.3,3398.9,2.83]
[1718737703350,2.94186,3399.2,3398.8,2.94215]
[1718737703773,2.94196,3399.1,3398.7,2.94224]
[1718737704004,2.94186,3399.2,3398.4,2.94254]
[1718737704005,2.9422,3398.9,3398.4,2.94254]
[1718737704421,2.9422,3398.9,3398.0,8.18236]
[1718737704422,2.94245,3398.6,3398.1,2.94275]
[1718737704620,2.94245,3398.6,3397.5,5.1831]
[1718737704621,0.60848943,3398.6,3397.5,5.1831]
[1718737704839,3.55102943,3398.5,3398.0,2.94282]
[1718737705127,3.55104943,3398.4,3398.0,2.94282]
[1718737705341,0.60848943,3398.3,3398.0,2.94282]
[1718737705851,0.60848943,3398.4,3398.1,2.94275]
[1718737706050,3.84708388,3398.5,3398.4,2.94256]
[1718737706051,0.60848943,3398.5,3398.4,2.94256]
[1718737706250,2.94237,3398.7,3398.1,2.94281]
[1718737706458,2.94237,3398.7,3398.1,2.9428]
[1718737706459,0.60848248,3398.5,3398.1,2.9428]
[1718737706661,0.60848248,3398.4,3398.1,2.9428]
[1718737707174,0.60848248,3398.5,3398.1,2.9428]
[1718737707336,0.60848248,3398.5,3398.1,2.94281]
[1718737707545,0.60848248,3398.5,3398.2,2.94271]
[1718737708166,0.60848248,3398.5,3398.0,5.77289]
[1718737708347,3.55111248,3398.4,3398.0,2.83]
[1718737708557,0.60848248,3398.3,3398.0,2.83]
[1718737709239,0.60848248,3398.4,3398.0,5.77282]
[1718737709571,0.60848248,3398.4,3398.2,2.94271]
[1718737709775,0.60848248,3398.5,3398.2,2.94271]
[1718737709974,0.60848248,3398.5,3398.3,2.94264]
[1718737710184,2.94236,3398.7,3398.3,2.94264]
[1718737710480,0.90460388,3398.9,3398.5,2.123]
[1718737710655,8.23293916,3399.5,3398.7,2.94229]
[1718737710656,3.84648388,3399.2,3398.7,2.94229]
[1718737710978,2.13861072,3399.1,3398.8,2.94221]
[1718737711180,0.90460388,3399.2,3398.8,2.94221]
[1718737711555,3.84648388,3399.2,3398.8,2.94221]
[1718737711957,3.84648388,3399.2,3398.7,2.94228]
[1718737712795,3.84648388,3399.2,3398.8,2.9422]
[1718737715078,3.84648388,3399.2,3398.4,3.49251]
[1718737715079,0.90460388,3399.3,3399.1,2.94195]
[1718737715372,2.94178,3399.3,3398.9,5.0651]
[1718737715576,2.94178,3399.3,3398.9,2.123]
[1718737716189,3.84638388,3399.3,3398.9,2.123]
[1718737716484,0.90460388,3399.3,3398.9,2.123]
[1718737716690,3.84640388,3399.3,3398.9,2.123]
[1718737716887,2.94204,3399.0,3398.9,2.123]
[1718737717074,2.94204,3399.0,3398.5,2.94242]
[1718737717075,2.94204,3399.0,3398.5,5.06542]
[1718737717263,2.94204,3399.0,3398.5,5.921217]
[1718737717470,3.84662388,3399.1,3398.5,2.123]
[1718737717854,2.94213,3398.9,3398.5,5.06547]
[1718737718595,3.84662388,3399.1,3398.5,5.06547]
[1718737718596,2.94238,3398.6,3398.5,2.123]
[1718737718900,2.94238,3398.6,3398.2,2.94272]
[1718737719260,2.94206,3399.0,3398.2,2.94272]
[1718737719261,2.94232,3398.7,3398.2,2.94272]
[1718737719462,2.94232,3398.7,3398.5,2.123]
[1718737719867,0.90460388,3399.2,3398.8,2.9422]
[1718737720078,2.9418,3399.3,3399.0,2.123]
[1718737720079,3.84640388,3399.3,3399.0,2.123]
[1718737720288,0.90460388,3399.3,3399.0,2.123]
[1718737720459,0.90460388,3399.3,3399.2,2.94186]
[1718737720663,0.6090764,3399.3,3399.2,2.94186]
[1718737721069,0.6090764,3399.3,3399.2,5.88372]
[1718737721677,0.6090764,3399.3,3399.2,6.43372]
[1718737723100,7.37,3400.1,3399.8,2.94128]
[1718737723288,2.4215,3400.6,3400.0,5.06414]
[1718737723498,2.94083,3400.4,3400.1,2.123]
[1718737724116,2.13783248,3400.3,3400.1,2.123]
[1718737724275,2.94074,3400.5,3400.1,2.123]
[1718737724477,2.13782678,3400.4,3400.1,2.123]
[1718737724781,5.07866678,3400.4,3400.1,2.123]
[1718737724988,2.94084,3400.4,3400.1,2.123]
[1718737725886,2.94075,3400.5,3400.1,2.123]
[1718737726283,7.22944,3400.6,3400.1,2.123]
[1718737727189,4.28877,3400.6,3400.2,2.941]
[1718737727389,2.94057,3400.7,3400.2,2.941]
[1718737727985,2.94057,3400.7,3400.1,5.06407]
[1718737728609,2.94057,3400.7,3400.1,2.123]
[1718737728906,2.9405,3400.8,3400.3,2.94091]
[1718737729117,3.75582,3400.8,3400.1,2.123]
[1718737729317,2.94073,3400.6,3400.1,2.123]
[1718737729492,2.94098,3400.3,3400.1,2.123]
[1718737729807,2.941,3400.2,3400.1,2.123]
[1718737730382,2.94066,3400.6,3400.1,5.06407]
[1718737730583,0.669655,3400.6,3400.1,5.06407]
[1718737731195,0.669655,3400.6,3400.1,2.123]
[1718737731396,3.75581,3400.8,3400.3,2.94089]
[1718737731579,2.13770198,3400.7,3400.3,2.94089]
[1718737731779,5.07828198,3400.7,3400.3,2.94089]
[1718737731982,2.94058,3400.7,3400.2,2.94099]
[1718737732417,2.2723,3401.0,3400.5,2.94066]
[1718737732616,10.31013,3401.2,3400.6,2.94062]
[1718737732831,2.94031,3401.0,3400.5,5.06373]
[1718737733113,2.94024,3401.1,3400.6,2.94064]
[1718737733419,2.94031,3401.0,3400.5,5.06372]
[1718737733594,7.37,3401.2,3401.0,2.94028]
[1718737733801,0.91314566,3401.5,3401.1,2.123]
[1718737734124,2.93997,3401.4,3401.1,2.123]
[1718737734309,2.94006,3401.3,3401.1,2.123]
[1718737734617,2.93982,3401.6,3401.1,2.123]
[1718737734618,2.93998,3401.4,3401.1,2.123]
[1718737735020,2.93988,3401.5,3401.1,2.123]
[1718737735517,2.93999,3401.4,3401.1,2.123]
[1718737736019,4.54307659,3401.5,3401.1,2.123]
[1718737736997,4.54307659,3401.5,3401.1,5.06321]
[1718737737412,2.93993,3401.5,3401.1,5.06321]
[1718737738322,2.93999,3401.4,3401.1,2.123]
[1718737739419,2.94005,3401.3,3401.1,2.123]
[1718737739789,2.94013,3401.2,3401.1,2.123]
[1718737739989,2.94007,3401.3,3401.1,2.123]
[1718737740399,1.030975,3401.6,3400.3,2.94091]
[1718737740400,2.94042,3400.9,3400.3,2.94091]
[1718737740603,5.19888,3401.2,3399.8,5.27679]
[1718737740825,5.88003,3401.4,3400.9,2.94038]
[1718737741035,1.1340675,3401.5,3401.0,2.94029]
[1718737741238,2.9398,3401.6,3401.2,2.123]
[1718737742097,7.37,3401.8,3401.2,2.123]
[1718737742455,10.30963,3401.8,3401.3,3.48998]
[1718737743007,7.37,3401.8,3401.2,2.123]
[1718737743281,7.37,3401.8,3399.9,3.527697]
[1718737743282,2.93971,3401.7,3400.3,2.9409]
[1718737743415,2.9404,3400.9,3400.4,2.9408]
[1718737743622,2.94032,3401.0,3400.5,2.9407]
[1718737744352,2.94032,3401.0,3400.6,2.94065]
[1718737745430,2.94017,3401.2,3400.4,2.94081]
[1718737745749,2.94058,3400.7,3400.3,5.0639]
[1718737746323,2.9405,3400.8,3400.4,2.94081]
[1718737746521,2.94066,3400.6,3400.3,2.123]
[1718737746752,2.94012,3401.3,3399.4,2.4545]
[1718737746943,2.9408,3400.5,3400.0,2.94115]
[1718737747124,2.94091,3400.4,3400.0,2.94115]
[1718737747520,2.94093,3400.3,3399.9,5.06424]
[1718737747855,2.94113,3400.1,3399.7,2.94143]
[1718737748052,2.94119,3400.0,3399.8,0.55]
[1718737748259,2.94119,3400.0,3399.7,1.601902]
[1718737749244,2.941,3400.2,3399.7,1.601902]
[1718737749425,2.941,3400.2,3399.8,2.94131]
[1718737749626,2.94091,3400.3,3399.8,0.60823558]
[1718737749821,0.50901491,3400.7,3399.7,1.601902]
[1718737750019,5.43722064,3400.8,3399.7,3.49141]
[1718737750020,2.94117,3400.1,3399.7,3.49141]
[1718737750354,2.94126,3400.0,3399.7,0.55]
[1718737750557,2.94124,3400.0,3399.7,0.55]
[1718737750982,2.94111,3400.1,3399.7,3.49143]
[1718737751129,2.94111,3400.1,3399.8,0.2673]
[1718737751467,2.94111,3400.1,3399.7,3.49143]
[1718737751468,2.94126,3399.9,3399.7,0.55]
[1718737751694,2.94118,3400.0,3399.6,3.4915]
[1718737753240,2.94118,3400.0,3399.6,0.55]
[1718737753546,2.94118,3400.0,3399.6,3.4915]
[1718737753748,2.94118,3400.0,3399.6,4.74068359]
[1718737754143,2.94084,3400.4,3399.8,2.94132]
[1718737754347,1.39822307,3400.9,3400.4,2.94083]
[1718737754539,7.37,3401.1,3400.4,2.94083]
[1718737754540,8.76773903,3401.1,3400.4,2.94083]
[1718737754774,7.37,3401.1,3400.6,2.94059]
[1718737754938,2.94033,3401.0,3400.7,2.123]
[1718737756547,2.9404,3400.9,3400.7,2.123]
[1718737757074,2.9404,3400.9,3400.5,2.94072]
[1718737757442,2.9406,3400.7,3400.3,2.123]
[1718737757645,2.94064,3400.7,3400.3,2.123]
[1718737758137,2.94108,3400.2,3399.9,2.123]
[1718737758357,2.94108,3400.2,3399.5,2.123]
[1718737758529,2.94126,3399.9,3399.5,5.06458]
[1718737758948,2.94168,3399.5,3399.1,2.4486]
[1718737759148,2.94113,3400.1,3398.7,2.94228]
[1718737759149,2.94184,3399.3,3398.7,2.94229]
[1718737759351,2.94185,3399.3,3398.8,2.94213]
[1718737759535,2.9417,3399.4,3399.0,2.94201]
[1718737759751,2.9417,3399.4,3398.8,4.281985]
[1718737760033,2.9417,3399.4,3398.8,6.404985]
[1718737760231,2.94145,3399.7,3398.8,6.404985]
[1718737760433,2.94185,3399.3,3398.8,6.404985]
[1718737761564,2.94204,3399.0,3398.6,2.94237]
[1718737761764,0.60679236,3399.6,3397.8,2.94307]
[1718737761765,2.94178,3399.3,3397.8,2.94307]
[1718737761963,2.94178,3399.3,3397.7,2.3131]
[1718737761964,2.94255,3398.5,3398.0,2.94282]
[1718737763268,2.94255,3398.5,3398.1,0.55]
[1718737763969,2.94258,3398.4,3398.1,0.55]
[1718737764177,2.94258,3398.4,3398.0,0.55]
[1718737764588,2.94247,3398.5,3398.0,3.49287]
[1718737765457,2.94247,3398.5,3398.1,2.9428]
[1718737767283,2.94233,3398.7,3398.1,2.9428]
[1718737767284,2.94239,3398.6,3398.1,2.9428]
[1718737767472,2.94238,3398.6,3398.0,4.580085]
[1718737767861,2.94248,3398.5,3398.1,2.94281]
[1718737768402,2.94248,3398.5,3398.1,3.9074085]
[1718737768952,2.94254,3398.5,3397.8,2.123]
[1718737769157,2.94278,3398.2,3397.8,2.123]
[1718737769370,2.94278,3398.2,3397.9,0.55]
[1718737770565,2.94278,3398.2,3397.8,0.55]
[1718737770766,2.943,3397.9,3397.6,2.123]
[1718737771168,2.943,3397.9,3397.4,2.94342]
[1718737771813,2.94306,3397.9,3397.4,2.94342]
[1718737772148,2.94306,3397.9,3397.2,5.06656]
[1718737772149,7.37,3398.5,3397.2,2.94356]
[1718737772431,2.94333,3397.6,3397.2,2.94356]
[1718737772570,2.9426,3398.4,3396.7,0.46130131]
[1718737772571,2.94342,3397.4,3396.7,0.46130131]
[1718737772883,2.94342,3397.4,3396.5,2.9442]
[1718737773075,2.94384,3397.0,3396.5,2.9442]
[1718737773269,2.94387,3396.9,3396.5,3.6834]
[1718737773715,2.94356,3397.3,3396.6,2.94407]
[1718737773716,2.9436,3397.2,3396.6,2.94407]
[1718737773922,2.94378,3397.0,3396.6,2.94407]
[1718737774087,2.94378,3397.0,3396.6,3.606817]
[1718737774428,2.94388,3396.9,3396.6,0.662747]
[1718737775210,2.2849,3397.7,3396.9,2.94383]
[1718737775211,2.94334,3397.5,3396.9,2.94383]
[1718737775506,2.94334,3397.5,3397.0,6.260546]
[1718737775683,2.94325,3397.6,3397.0,5.61677]
[1718737776168,2.94325,3397.6,3397.1,2.94363]
[1718737776374,2.94334,3397.5,3397.0,5.61676]
[1718737776604,2.94334,3397.5,3397.1,2.94367]
[1718737777189,2.94323,3397.7,3397.2,2.94359]
[1718737777909,2.94334,3397.5,3397.1,2.94366]
[1718737779189,2.94323,3397.7,3397.2,2.94355]
[1718737779493,2.94326,3397.6,3397.2,2.94355]
[1718737780394,2.94326,3397.6,3397.0,6.178463]
[1718737780395,2.94335,3397.5,3397.1,2.94368]
[1718737780796,2.94343,3397.4,3397.1,2.94368]
[1718737781034,2.94343,3397.4,3397.0,5.61675]
[1718737781194,2.94351,3397.3,3397.0,0.55]
[1718737781388,2.94351,3397.3,3396.9,2.94384]
[1718737781591,5.88693,3397.4,3397.0,0.55]
[1718737781855,2.94342,3397.4,3397.0,0.55]
[1718737782036,2.94334,3397.5,3397.0,1.193778]
[1718737782037,2.94336,3397.5,3397.0,1.193778]
[1718737782237,2.94303,3397.9,3397.0,2.673]
[1718737782556,2.9425,3398.5,3397.4,2.123]
[1718737782713,2.94283,3398.1,3397.7,2.9431]
[1718737782908,2.94284,3398.1,3397.5,0.2123]
[1718737783115,2.94284,3398.1,3397.6,0.55]
[1718737783365,2.94257,3398.4,3397.6,0.55]
[1718737783659,2.94263,3398.4,3398.0,2.9429]
[1718737783964,2.94248,3398.5,3397.7,0.582868]
[1718737783965,2.94281,3398.2,3397.7,3.525958]
[1718737784114,2.4793,3398.6,3397.8,2.94301]
[1718737784356,2.4793,3398.6,3397.8,2.94306]
[1718737784666,2.94291,3398.0,3397.7,0.582868]
[1718737784874,2.94265,3398.3,3397.6,3.49324]
[1718737785064,2.94266,3398.3,3397.9,2.94293]
[1718737785804,2.94256,3398.4,3398.0,2.94287]
[1718737786007,5.31709,3399.1,3398.3,2.94263]
[1718737786152,5.94205,3399.0,3398.2,5.06572]
[1718737786457,2.94188,3399.2,3398.3,0.55]
[1718737786873,2.3751,3399.5,3398.6,2.123]
[1718737787079,2.94152,3399.6,3399.2,2.94186]
[1718737787379,2.94154,3399.6,3399.1,2.94195]
[1718737787608,0.91314566,3399.9,3399.0,2.123]
[1718737787781,0.91314566,3399.9,3399.4,2.94163]
[1718737788159,0.91314566,3399.9,3399.6,2.94152]
[1718737789192,0.91314566,3399.9,3399.6,5.88304]
[1718737789400,0.91314566,3399.9,3399.6,6.43304]
[1718737789814,0.91314566,3399.9,3399.6,9.37456]
[1718737789979,0.91314566,3399.9,3399.6,10.524316]
[1718737790689,0.91314566,3399.9,3399.6,12.810416]
[1718737791508,0.91314566,3399.9,3399.6,9.868896]
[1718737791827,0.91314566,3399.9,3399.6,11.991896]
[1718737792894,0.91314566,3399.9,3399.6,14.933416]
[1718737793280,0.91314566,3399.9,3399.6,4.641276]
[1718737793707,0.91314566,3399.9,3399.6,7.582796]
[1718737796131,0.91314566,3399.9,3399.6,10.524316]
[1718737800427,0.91314566,3399.9,3399.6,9.705796]
[1718737800723,0.91314566,3399.9,3399.6,5.61452]
[1718737800912,0.91314566,3399.9,3399.6,5.06452]
[1718737802023,0.91314566,3399.9,3399.6,8.00604]
[1718737802225,2.94104,3400.2,3399.8,2.9413]
[1718737802724,2.94084,3400.4,3400.0,2.94117]
[1718737803117,7.37,3401.2,3400.3,2.9409]
[1718737803331,7.37,3401.2,3400.1,0.55]
[1718737803332,7.37,3401.2,3400.9,2.123]
[1718737803502,5.22258,3401.5,3401.1,2.94021]
[1718737803710,3.098937,3401.5,3401.1,2.94021]
[1718737804238,2.9398,3401.6,3401.2,2.94006]
[1718737804404,7.37,3401.9,3401.3,2.94004]
[1718737804604,2.93962,3401.8,3401.3,2.93997]
[1718737804800,2.93962,3401.8,3401.4,2.93995]
[1718737805040,2.93962,3401.8,3401.3,2.93997]
[1718737805215,2.93988,3401.5,3401.0,2.94023]
[1718737805424,2.93963,3401.8,3401.1,0.55]
[1718737805847,2.2827,3402.0,3401.0,3.49023]
[1718737806155,2.93972,3401.7,3401.1,2.94014]
[1718737806308,2.93972,3401.7,3401.3,2.94004]
[1718737806707,2.93954,3401.9,3401.0,0.55]
[1718737806954,3.822224,3401.8,3401.0,0.55]
[1718737807840,2.94031,3401.0,3400.6,2.94064]
[1718737808051,2.94006,3401.3,3400.9,2.94038]
[1718737808231,2.93989,3401.5,3401.1,2.94021]
[1718737808545,11.131884,3401.8,3400.7,3.49054]
[1718737808546,8.192224,3401.8,3401.3,2.93997]
[1718737808734,0.822224,3401.8,3401.3,2.93997]
[1718737809508,2.93923,3402.3,3401.0,2.94025]
[1718737809509,2.93926,3402.3,3401.8,2.93953]
[1718737809944,2.93926,3402.3,3401.9,2.93951]
[1718737810149,2.93937,3402.1,3401.7,5.06269]
[1718737810306,1.567127,3402.3,3401.7,5.06269]
[1718737810307,1.567127,3402.3,3401.7,2.123]
[1718737810516,9.793,3402.5,3401.7,2.123]
[1718737810726,3.996194,3402.5,3401.7,2.123]
[1718737810909,3.996194,3402.5,3401.9,2.93952]
[1718737811232,5.36203,3402.5,3402.1,2.93935]
[1718737811553,3.0,3402.8,3402.1,2.123]
[1718737811760,2.93877,3402.8,3402.3,2.93917]
[1718737812053,3.46898,3402.8,3402.2,2.93926]
[1718737812613,3.46898,3402.8,3402.1,2.123]
[1718737812863,2.93925,3402.3,3401.9,2.93949]
[1718737813070,0.577108,3402.7,3402.3,2.93918]
[1718737813209,3.0,3403.1,3402.3,2.93918]
[1718737814070,5.39503,3403.3,3402.4,3.48909]
[1718737814527,2.9385,3403.1,3402.7,2.93883]
[1718737815464,2.93882,3402.8,3402.4,0.55]
[1718737815627,2.93882,3402.8,3402.5,2.93899]
[1718737815954,2.93859,3403.0,3402.5,2.93901]
[1718737816170,2.93821,3403.5,3403.0,2.93852]
[1718737816368,2.93799,3403.7,3403.1,2.93842]
[1718737816659,2.93781,3403.9,3403.4,2.93817]
[1718737816870,2.93781,3403.9,3403.2,5.06141]
[1718737817114,3.457621,3403.8,3403.4,2.93821]
[1718737817239,5.19678,3404.1,3403.5,2.93813]
[1718737817240,2.93765,3404.1,3403.5,2.93813]
[1718737817441,2.9377,3404.1,3403.7,2.93797]
[1718737817792,2.93772,3404.0,3403.6,5.61106]
[1718737818299,2.93772,3404.0,3403.3,2.93831]
[1718737818300,2.93797,3403.7,3403.3,2.93831]
[1718737818491,2.938,3403.7,3403.1,2.93846]
[1718737818667,2.93818,3403.5,3403.2,3.48839]
[1718737818842,2.93807,3403.6,3403.2,6.42671]
[1718737819042,4.044913,3404.0,3403.5,2.93808]
[1718737819043,4.044903,3404.0,3403.5,2.93808]
[1718737819346,5.19656,3404.3,3403.6,0.55]
[1718737819347,5.19657,3404.3,3403.6,0.55]
[1718737819546,5.19657,3404.3,3403.5,0.55]
[1718737819865,2.93765,3404.1,3403.6,2.93804]
[1718737820199,2.9377,3404.1,3403.7,3.48796]
[1718737820336,5.3342,3404.8,3403.6,2.93804]
[1718737820541,2.93755,3404.2,3403.7,0.55]
[1718737820737,2.93755,3404.2,3403.7,3.48795]
[1718737821038,2.93762,3404.2,3403.8,2.93786]
[1718737821238,2.93764,3404.1,3403.7,3.48797]
[1718737821443,2.93721,3404.6,3403.7,4.636692]
[1718737821681,2.93728,3404.5,3404.1,2.93762]
[1718737822175,2.93698,3404.9,3404.2,3.48747]
[1718737822176,2.93695,3404.9,3404.2,3.48747]
[1718737822442,2.93707,3404.8,3404.2,2.93751]
[1718737822814,1.276507,3405.0,3403.9,5.06079]
[1718737823136,2.93723,3404.6,3404.0,0.55]
[1718737823321,2.93723,3404.6,3404.0,3.48771]
[1718737823521,2.93723,3404.6,3404.0,0.55]
[1718737823943,2.93722,3404.6,3404.1,2.93755]
[1718737824147,2.93722,3404.6,3404.2,3.48753]
[1718737824642,5.39499,3405.2,3404.6,2.9372]
[1718737824818,2.93669,3405.2,3404.7,2.93707]
[1718737825145,2.93659,3405.3,3404.9,2.93694]
[1718737825301,2.93651,3405.4,3405.0,2.93683]
[1718737825731,2.4487,3405.7,3404.9,2.123]
[1718737825915,2.93684,3405.1,3405.0,0.55]
[1718737826401,0.538496,3405.6,3404.1,1.148603]
[1718737826402,2.93713,3404.7,3404.1,1.148603]
[1718737826615,2.93713,3404.7,3403.9,2.93773]
[1718737826616,2.93753,3404.3,3403.9,2.93773]
[1718737826817,2.93745,3404.4,3403.9,2.93773]
[1718737827603,2.93762,3404.2,3403.8,2.93788]
[1718737827809,2.93762,3404.2,3403.9,2.123]
[1718737828028,2.93762,3404.2,3404.0,0.55]
[1718737828761,2.93762,3404.2,3403.9,2.123]
[1718737828762,2.93763,3404.1,3403.9,2.123]
[1718737829151,2.93772,3404.0,3403.9,2.123]
[1718737830010,2.93755,3404.2,3403.9,2.673]
[1718737830214,2.93755,3404.2,3404.0,0.55]
[1718737830428,2.93747,3404.3,3404.0,0.55]
[1718737831420,10.30686,3405.0,3404.0,0.55]
[1718737831648,5.3098,3405.3,3404.8,2.123]
[1718737831808,2.9366,3405.3,3404.8,2.123]
[1718737832013,2.3732,3405.8,3405.1,2.93671]
[1718737832209,2.3732,3405.8,3405.2,5.60967]
[1718737832210,2.93617,3405.8,3405.2,5.60967]
[1718737832418,7.37,3406.0,3405.3,2.93659]
[1718737832644,2.93598,3406.1,3405.6,5.05927]
[1718737832849,2.93591,3406.1,3405.7,0.55]
[1718737833017,2.93609,3405.9,3405.7,0.55]
[1718737833213,2.93575,3406.3,3405.7,0.55]
[1718737833425,2.93606,3406.0,3405.7,0.55]
[1718737833684,2.93616,3405.8,3405.7,0.55]
[1718737834020,0.293575,3406.2,3405.2,2.123]
[1718737834227,4.84366767,3406.6,3404.0,2.93771]
[1718737834228,2.93723,3404.6,3404.0,2.93771]
[1718737834611,2.93723,3404.6,3403.3,2.2517]
[1718737834612,2.93702,3404.9,3404.3,2.93741]
[1718737834864,2.93746,3404.3,3404.0,2.123]
[1718737835050,2.93746,3404.3,3403.6,2.123]
[1718737835051,2.93777,3404.0,3403.6,2.123]
[1718737835385,2.93764,3404.1,3403.6,5.06104]
[1718737835579,2.9376,3404.2,3403.8,2.93789]
[1718737835868,2.93755,3404.2,3403.7,2.93796]
[1718737836034,2.93773,3404.0,3403.6,0.9008818]
[1718737836234,2.93792,3403.8,3403.6,0.9008818]
[1718737836544,2.93781,3403.9,3403.5,2.93814]
[1718737837731,2.93755,3404.2,3403.6,0.55]
[1718737837920,2.93755,3404.2,3403.5,0.55]
[1718737838123,2.93772,3404.0,3403.5,3.48813]
[1718737838354,2.93772,3404.0,3403.6,2.93804]
[1718737838651,2.93772,3404.0,3403.7,0.55]
[1718737838853,2.93782,3403.9,3403.7,0.55]
[1718737839151,2.93791,3403.8,3403.6,0.55]
[1718737839943,2.93772,3404.0,3403.6,3.48806]
[1718737840255,2.93763,3404.1,3403.6,4.2231529]
[1718737840596,1.40096494,3404.7,3403.6,1.2850929]
[1718737840597,1.90937578,3404.7,3403.6,1.2850929]
[1718737840733,7.37,3404.8,3404.4,2.93729]
[1718737840950,2.93673,3405.2,3404.2,2.93747]
[1718737840951,2.93685,3405.0,3404.6,2.93716]
[1718737841287,2.93685,3405.0,3404.7,0.55]
[1718737841666,2.93694,3404.9,3404.7,0.55]
[1718737841860,2.93694,3404.9,3403.9,2.93776]
[1718737841861,2.93703,3404.8,3404.0,2.93769]
[1718737842059,2.93689,3405.0,3404.2,2.93752]
[1718737842259,2.93677,3405.1,3404.3,0.55]
[1718737842463,2.9367,3405.2,3404.5,2.93728]
[1718737842663,1.90925803,3405.5,3404.8,2.93699]
[1718737842983,2.93651,3405.4,3404.9,0.55]
[1718737843188,2.93651,3405.4,3404.9,3.48688]
[1718737843363,2.9366,3405.3,3404.9,3.48688]
[1718737843887,1.40096494,3405.7,3404.3,5.75842]
[1718737843888,2.93685,3405.0,3404.3,5.75842]
[1718737844091,2.93673,3405.2,3404.4,0.55]
[1718737844485,2.93661,3405.3,3404.7,2.93711]
[1718737844789,2.9364,3405.6,3405.2,2.93664]
[1718737845001,2.93627,3405.7,3405.3,2.93659]
[1718737845296,2.93627,3405.7,3405.3,2.93657]
[1718737845497,2.93635,3405.6,3405.3,2.93657]